Cogmind - Beta 9.6 @@@ ROGUE MODE // 2020.06.04 @ 22:33:37 Player: Ben'n'Dan Result: Destroyed by S-43 Plague with Heavy Machine Gun Performance ------------- Evolutions (8) 4000 Regions Visited (9) 1800 Robots Destroyed (0) 0 Value Destroyed (0) 0 Prototype IDs (4) 80 Alien Tech Used (0) 0 Bonus (5711) 5711 TOTAL SCORE: 11591 Bonus ------- Pacifist 5711 Cogmind --------- Core Integrity 0/1450 Matter 151/300 Energy 99/100 System Corruption 4% Temperature Cool (0) Movement Core (50) Location -2/Research Parts ------- > --- POWER (3) -------- (None) > --- PROPULSION (8) --- (None) > --- UTILITY (10) ----- (None) > --- WEAPON (2) ------- (None) > --- INVENTORY (4) ---- (None) Peak State ------------ > --- POWER ------------ Ion Engine Light Nuclear Core Antimatter Reactor > --- PROPULSION ------- Aerolev Unit Gyrokinetic Inverter Gyrokinetic Inverter Gyrokinetic Inverter Gyrokinetic Inverter Improved Linear Gravjet > --- UTILITY ---------- Advanced Coolant Injector Advanced Weight Redist. System Enhanced Optical Array Advanced Signal Interpreter Hacking Suite > --- WEAPON ----------- Proton Cannon > --- INVENTORY -------- Field Propulsion Array [Rating: 72] Favorites ----------- Power Light Nuclear Core Engine Ion Engine Power Core Light Nuclear Core Reactor Antimatter Reactor Propulsion Gyrokinetic Inverter Hover Unit Gyrokinetic Inverter Flight Unit Field Propulsion Array Utility Hacking Suite Device Advanced Weight Redist. System Processor Enhanced Optical Array Hackware Hacking Suite Weapon Light Assault Rifle Energy Gun Medium Laser Energy Cannon Proton Cannon Ballistic Gun Light Assault Rifle Build | -11 -10 -9 -8 -7 -6 -5 -4 -3 -2 ------- Run | Scr Mat Mat Mat Fac Fac Fac Fac Res Res Slots Evolved 16 | . . 2 2 2 2 2 2 2 2 Power 2 | . . . . 1 . . 1 . . Propulsion 6 | . . 1 1 1 . 1 . 1 1 Utility 8 | . . 1 1 . 2 1 1 1 1 Weapon . | . . . . . . . . . . Parts Attached 27 | 2 . . . 6 4 2 13 . . Power 5 | . . . . 1 1 1 2 . . Engine 1 | . . . . . . . 1 . . Core 3 | . . . . 1 1 1 . . . Reactor 1 | . . . . . . . 1 . . Propulsion 12 | . . . . 2 1 1 8 . . Treads . | . . . . . . . . . . Leg . | . . . . . . . . . . Wheel . | . . . . . . . . . . Hover 9 | . . . . 2 1 1 5 . . Flight 3 | . . . . . . . 3 . . Utility 5 | . . . . 2 1 . 2 . . Device 2 | . . . . . 1 . 1 . . Storage . | . . . . . . . . . . Processor 2 | . . . . 1 . . 1 . . Hackware 1 | . . . . 1 . . . . . Protection . | . . . . . . . . . . Artifact . | . . . . . . . . . . Weapon 5 | 2 . . . 1 1 . 1 . . Energy Gun 2 | 1 . . . . 1 . . . . Energy Cannon 1 | . . . . . . . 1 . . Ballistic Gun 2 | 1 . . . 1 . . . . . Ballistic Cannon . | . . . . . . . . . . Launcher . | . . . . . . . . . . Special Weapon . | . . . . . . . . . . Impact Weapon . | . . . . . . . . . . Slashing Weapon . | . . . . . . . . . . Piercing Weapon . | . . . . . . . . . . Special Melee Weapon . | . . . . . . . . . . Unidentified Prototypes 2 | . . . . 1 1 . . . . Parts Lost 20 | . . 1 . . 2 1 4 3 9 Power 4 | . . . . . 1 . 1 2 . Propulsion 8 | . . . . . . . 3 1 4 Utility 5 | . . . . . . . . . 5 Weapon 3 | . . 1 . . 1 1 . . . Highest Loss Streak 7 | . . 1 . . 2 1 4 3 7 Average Slot Usage (%) 39 | . 28 20 9 28 58 58 57 53 31 Engine 1 | . . . . . . . 5 . . Core 4 | . . . . 3 12 11 8 2 . Hover 11 | . . . . 7 15 23 18 18 11 Flight 1 | . . . . . . . 4 4 1 Device 3 | . . . . . 6 5 5 9 5 Processor 4 | . . . . 2 6 5 5 9 7 Hackware 3 | . . . . 6 6 5 5 4 3 Energy Gun 1 | . 14 9 . . 3 . . . . Ballistic Gun 4 | . 14 11 9 7 6 5 . . . Naked Turns 8 | . . . . . . . . . 8 Heaviest Build 35 | 3 3 3 1 8 18 13 35 22 1 Greatest Support 88 | 3 3 3 3 38 49 59 88 23 23 Greatest Overweight (x) 1 | . . . . . . . 1 . . Average Overweight (x) . | . . . . . . . . . . Largest Inventory Capacity 4 | 4 4 4 4 4 4 4 4 4 4 Average Capacity 4 | 4 4 4 4 4 4 4 4 4 4 Most Carried 4 | 2 2 2 3 4 3 2 3 . . Average Carried 1 | 1 2 2 2 3 2 1 1 . . Final Capacity 4 | 4 4 4 4 4 4 4 4 4 4 Final Carried 3 | 2 2 2 3 3 2 1 . . . Class Distribution -------------------- 96% | Mutant 3% | Sprinter Dominant Class ---------------- Mutant | -10/Materials Mutant | -9/Materials Mutant | -8/Materials Mutant | -7/Factory Mutant | -6/Factory Mutant | -5/Factory Mutant | -4/Factory Mutant | -3/Research Mutant | -2/Research Resources | -11 -10 -9 -8 -7 -6 -5 -4 -3 -2 ----------- Run | Scr Mat Mat Mat Fac Fac Fac Fac Res Res Matter Collected 206 | 206 . . . . . . . . . Remotely . | . . . . . . . . . . Salvage Created . | . . . . . . . . . . Parts . | . . . . . . . . . . Haulers Intercepted . | . . . . . . . . . . Recyclers Shooed . | . . . . . . . . . . Parts Field Recycled . | . . . . . . . . . . Retrieved Matter . | . . . . . . . . . . Parts Self-Destructed . | . . . . . . . . . . Prevented . | . . . . . . . . . . Kills | -11 -10 -9 -8 -7 -6 -5 -4 -3 -2 ------- Run | Scr Mat Mat Mat Fac Fac Fac Fac Res Res Combat Hostiles Destroyed . | . . . . . . . . . . Classes Destroyed . | . . . . . . . . . . Best Kill Streak . | . . . . . . . . . . Combat Bots Only . | . . . . . . . . . . Max Kills in Single Turn . | . . . . . . . . . . Gunslinging . | . . . . . . . . . . Exploded . | . . . . . . . . . . Melee . | . . . . . . . . . . Uniques/NPCs Destroyed . | . . . . . . . . . . Combat | -11 -10 -9 -8 -7 -6 -5 -4 -3 -2 -------- Run | Scr Mat Mat Mat Fac Fac Fac Fac Res Res Damage Taken 3415 | . . 169 42 82 377 64 454 314 1913 Core 1989 | . . 83 29 49 119 . 129 108 1472 Absorbed by Shields . | . . . . . . . . . . Core Remaining (%) 92 | 100 100 79 94 93 86 100 88 91 . Volleys Fired . | . . . . . . . . . . Largest . | . . . . . . . . . . Hottest . | . . . . . . . . . . Shots Fired . | . . . . . . . . . . Gun . | . . . . . . . . . . Cannon . | . . . . . . . . . . Launcher . | . . . . . . . . . . Special . | . . . . . . . . . . Kinetic . | . . . . . . . . . . Thermal . | . . . . . . . . . . Explosive . | . . . . . . . . . . Electromagnetic . | . . . . . . . . . . Robot Hit Streak . | . . . . . . . . . . Robot Miss Streak . | . . . . . . . . . . Penetration Max . | . . . . . . . . . . Secondary Targets . | . . . . . . . . . . Shots Hit Robots . | . . . . . . . . . . Core Hits 2 | . . . . . . . . . 2 Critical Hits . | . . . . . . . . . . Critical Kills . | . . . . . . . . . . Critical Parts Destroyed . | . . . . . . . . . . Melee Attacks . | . . . . . . . . . . Impact . | . . . . . . . . . . Slashing . | . . . . . . . . . . Piercing . | . . . . . . . . . . Sneak Attacks . | . . . . . . . . . . Combat Hostiles . | . . . . . . . . . . Follow-up Attacks . | . . . . . . . . . . Damage Inflicted 43 | . . . . . 27 . . . 16 Guns . | . . . . . . . . . . Cannons . | . . . . . . . . . . Explosions . | . . . . . . . . . . Melee . | . . . . . . . . . . Ramming 43 | . . . . . 27 . . . 16 Kinetic . | . . . . . . . . . . Thermal . | . . . . . . . . . . Explosive . | . . . . . . . . . . Electromagnetic . | . . . . . . . . . . Impact . | . . . . . . . . . . Slashing . | . . . . . . . . . . Piercing . | . . . . . . . . . . Highest Corruption 4 | . . . . . . . . . 4 Average Corruption 3 | . . . . . . . . . 3 Corruption Purged . | . . . . . . . . . . Effects 2 | . . . . . . . . . 2 Message Errors 1 | . . . . . . . . . 1 Matter Fused 1 | . . . . . . . . . 1 Overload Shots . | . . . . . . . . . . Overflow Damage . | . . . . . . . . . . Projectiles . | . . . . . . . . . . Explosions . | . . . . . . . . . . Melee . | . . . . . . . . . . Knockbacks . | . . . . . . . . . . Impact . | . . . . . . . . . . Kinetic . | . . . . . . . . . . Secondary . | . . . . . . . . . . Self-Inflicted Damage 20 | . . . . . 13 . . . 7 Shots . | . . . . . . . . . . Rammed 7 | . . . . . 3 . . . 4 Targets Rammed 7 | . . . . . 3 . . . 4 Kicked . | . . . . . . . . . . Crushed . | . . . . . . . . . . Highest Temperature 120 | . . . . . . . 120 . . Average Temperature 58 | . . . . . . . 58 . . Received Heat Transfer 453 | . . 54 18 36 135 9 57 . 144 Siege Activations . | . . . . . . . . . . Robots Corrupted . | . . . . . . . . . . Combat Hostiles . | . . . . . . . . . . Parts Fried . | . . . . . . . . . . Impact Corruptions . | . . . . . . . . . . Robots Melted . | . . . . . . . . . . Combat Hostiles . | . . . . . . . . . . Parts Melted . | . . . . . . . . . . Heat Transferred . | . . . . . . . . . . Parts Sabotaged . | . . . . . . . . . . Parts Stolen . | . . . . . . . . . . Parts Stripped . | . . . . . . . . . . Power Chain Reactions . | . . . . . . . . . . Missiles Intercepted . | . . . . . . . . . . Alert | -11 -10 -9 -8 -7 -6 -5 -4 -3 -2 ------- Run | Scr Mat Mat Mat Fac Fac Fac Fac Res Res Peak Influence 79 | . 24 39 79 65 59 31 69 75 60 Average Influence 35 | . 9 20 39 45 36 25 32 63 40 Maximum Alert Level . | . . . . . . . . . . Low Security (%) 100 | 100 100 100 100 100 100 100 100 100 100 Level 1 . | . . . . . . . . . . Level 2 . | . . . . . . . . . . Level 3 . | . . . . . . . . . . Level 4 . | . . . . . . . . . . Level 5 . | . . . . . . . . . . High Security . | . . . . . . . . . . Max Security . | . . . . . . . . . . Squads Dispatched 8 | . . . 1 1 1 . 3 1 1 Investigation 4 | . . . . . 1 . 2 1 . Extermination . | . . . . . . . . . . Reinforcement 4 | . . . 1 1 . . 1 . 1 Assault . | . . . . . . . . . . Garrison . | . . . . . . . . . . Intercept . | . . . . . . . . . . Construction Impeded . | . . . . . . . . . . Haulers Reinforced 1 | . . . . . . . . . 1 Stealth | -11 -10 -9 -8 -7 -6 -5 -4 -3 -2 --------- Run | Scr Mat Mat Mat Fac Fac Fac Fac Res Res Distress Signals 2 | . . 1 . . . . . . 1 Communications Jammed . | . . . . . . . . . . Distress Signals . | . . . . . . . . . . Times Spotted 71 | . 1 4 4 2 7 2 19 8 24 Peak Tracking Total 21 | . 1 6 3 1 7 2 12 8 21 Tactical Retreats 8 | . . 1 . . 1 . 3 1 2 Traps | -11 -10 -9 -8 -7 -6 -5 -4 -3 -2 ------- Run | Scr Mat Mat Mat Fac Fac Fac Fac Res Res Traps Triggered 3 | . . . . . . . 2 . 1 Indirectly . | . . . . . . . . . . Trap Hack Attempts . | . . . . . . . . . . Triggered . | . . . . . . . . . . Disarmed . | . . . . . . . . . . Reprogrammed . | . . . . . . . . . . Reused . | . . . . . . . . . . Traps Extracted . | . . . . . . . . . . Installed . | . . . . . . . . . . Triggered . | . . . . . . . . . . Machines | -11 -10 -9 -8 -7 -6 -5 -4 -3 -2 ---------- Run | Scr Mat Mat Mat Fac Fac Fac Fac Res Res Machines Disabled . | . . . . . . . . . . Max in Single Turn . | . . . . . . . . . . Machines Sabotaged . | . . . . . . . . . . Garrisons Compromised . | . . . . . . . . . . Overloaded Fab Kills . | . . . . . . . . . . Fab Network Shutdowns . | . . . . . . . . . . Hacking | -11 -10 -9 -8 -7 -6 -5 -4 -3 -2 --------- Run | Scr Mat Mat Mat Fac Fac Fac Fac Res Res Machines Accessed 9 | . 1 1 1 . 1 1 2 1 1 Terminals 9 | . 1 1 1 . 1 1 2 1 1 Fabricators . | . . . . . . . . . . Repair Stations . | . . . . . . . . . . Recycling Units . | . . . . . . . . . . Scanalyzers . | . . . . . . . . . . Garrison Access . | . . . . . . . . . . Total Hacks 22 | . 1 3 3 . 3 3 5 3 1 Successful 8 | . 1 . 1 . 1 2 . 2 1 Failed 14 | . . 3 2 . 2 1 5 1 . Catastrophic 5 | . . 2 1 . . . 2 . . Database Lockouts . | . . . . . . . . . . Manual 14 | . 1 3 . . 3 2 4 . 1 Terminals 22 | . 1 3 3 . 3 3 5 3 1 Fabricators . | . . . . . . . . . . Repair Stations . | . . . . . . . . . . Recycling Units . | . . . . . . . . . . Scanalyzers . | . . . . . . . . . . Garrison Access . | . . . . . . . . . . Terminal Hacks 8 | . 1 . 1 . 1 2 . 2 1 Robot Analysis 1 | . . . . . . . . 1 . Prototype ID Bank 1 | . . . . . . 1 . . . Level Access Points 6 | . 1 . 1 . 1 1 . 1 1 Fabricator Hacks . | . . . . . . . . . . Repair Station Hacks . | . . . . . . . . . . Recycling Unit Hacks . | . . . . . . . . . . Scanalyzer . | . . . . . . . . . . Garrison Access Hacks . | . . . . . . . . . . Unauthorized Hacks . | . . . . . . . . . . Terminals . | . . . . . . . . . . Fabricators . | . . . . . . . . . . Repair Stations . | . . . . . . . . . . Recycling Units . | . . . . . . . . . . Scanalyzers . | . . . . . . . . . . Garrison Access . | . . . . . . . . . . Data Cores Recovered . | . . . . . . . . . . Used . | . . . . . . . . . . Hacking Detections 7 | . . 1 1 . 1 1 2 1 . Full Trace Events 5 | . . 1 . . 1 . 2 1 . Feedback Events . | . . . . . . . . . . Feedback Blocked . | . . . . . . . . . . Robot Schematics Acquired . | . . . . . . . . . . Robots Built . | . . . . . . . . . . Matter . | . . . . . . . . . . Time . | . . . . . . . . . . Total Robot Build Rating . | . . . . . . . . . . Part Schematics Acquired . | . . . . . . . . . . Parts Built . | . . . . . . . . . . Matter . | . . . . . . . . . . Time . | . . . . . . . . . . Total Part Build Rating . | . . . . . . . . . . Parts Repaired . | . . . . . . . . . . Time . | . . . . . . . . . . Parts Recycled . | . . . . . . . . . . Recycled Matter . | . . . . . . . . . . Retrieved Matter . | . . . . . . . . . . Retrieved Components . | . . . . . . . . . . Parts Scanalyzed . | . . . . . . . . . . Part Schematics Acquired . | . . . . . . . . . . Parts Damaged . | . . . . . . . . . . Bothacking | -11 -10 -9 -8 -7 -6 -5 -4 -3 -2 ------------ Run | Scr Mat Mat Mat Fac Fac Fac Fac Res Res Used RIF Installer . | . . . . . . . . . . Robots Hacked . | . . . . . . . . . . Non-combat . | . . . . . . . . . . Combat . | . . . . . . . . . . Robot Hacks Applied . | . . . . . . . . . . Relay Couplers Released . | . . . . . . . . . . Robots Rewired . | . . . . . . . . . . Allies Hacked . | . . . . . . . . . . Hacks Repelled . | . . . . . . . . . . Allies | -11 -10 -9 -8 -7 -6 -5 -4 -3 -2 -------- Run | Scr Mat Mat Mat Fac Fac Fac Fac Res Res Total Allies . | . . . . . . . . . . Largest Group . | . . . . . . . . . . Highest-Rated Group . | . . . . . . . . . . Highest-Rated Ally . | . . . . . . . . . . Total Orders . | . . . . . . . . . . Ally Attacks . | . . . . . . . . . . Total Damage . | . . . . . . . . . . Kills . | . . . . . . . . . . Allies Corrupted . | . . . . . . . . . . Allies Melted . | . . . . . . . . . . Intel | -11 -10 -9 -8 -7 -6 -5 -4 -3 -2 ------- Run | Scr Mat Mat Mat Fac Fac Fac Fac Res Res Robot Analysis Total 1 | . . . . . . . . 1 . Derelict Logs Recovered . | . . . . . . . . . . Drone Launches . | . . . . . . . . . . Drone Recoveries . | . . . . . . . . . . Exploration | -11 -10 -9 -8 -7 -6 -5 -4 -3 -2 ------------- Run | Scr Mat Mat Mat Fac Fac Fac Fac Res Res Turns Passed 758 | 19 36 54 89 73 102 33 161 51 140 Spaces Moved 1592 | 26 70 107 156 139 236 82 351 127 298 Core 576 | 26 70 107 156 54 . . . . 163 Treads . | . . . . . . . . . . Legs . | . . . . . . . . . . Wheels . | . . . . . . . . . . Hover 569 | . . . . 85 236 82 166 . . Flight 447 | . . . . . . . 185 127 135 Fastest Speed 33 | 50 50 50 50 38 34 34 33 40 40 Average Speed 42 | 50 50 50 50 42 36 37 36 40 45 Slowest Speed 110 | 50 50 50 50 50 38 38 110 40 50 Overloaded Moves 555 | . . . . 84 236 82 153 . . Propulsion Burnouts 1 | . . . . . . . 1 . . Robots Hopped 13 | . . . . . . . 5 6 2 Cave-ins Triggered . | . . . . . . . . . . Exploration Rate (%) 12 | 3 28 21 21 6 10 4 14 6 13 Regions Visited 9 Branch Regions . Pre-discovered Areas . | . . . . . . . . . . Known Exits Taken 6 | . 1 . 1 . 1 1 1 1 . Unknown Exits Taken 3 | 1 . 1 . 1 . . . . . Scrap Searched . | . . . . . . . . . . Spaces Dug . | . . . . . . . . . . Terrain Destroyed . | . . . . . . . . . . Melee . | . . . . . . . . . . Projectile . | . . . . . . . . . . AOE . | . . . . . . . . . . Actions | -11 -10 -9 -8 -7 -6 -5 -4 -3 -2 --------- Run | Scr Mat Mat Mat Fac Fac Fac Fac Res Res Total 1651 | 30 70 106 166 150 249 83 377 120 300 Wait 27 | 1 1 . 10 2 7 . 6 . . Move 1557 | 25 69 106 155 138 235 81 340 114 294 Hop 13 | . . . . . . . 5 6 2 Pick Up 6 | 2 . . 1 2 . . 1 . . Fast Attach 21 | 2 . . . 5 3 1 10 . . Attach 6 | . . . . 1 1 1 3 . . Detach 1 | . . . . . . . 1 . . Swap . | . . . . . . . . . . Drop 7 | . . . . 2 . . 5 . . Fire . | . . . . . . . . . . Melee . | . . . . . . . . . . Ram 7 | . . . . . 3 . . . 4 Kick . | . . . . . . . . . . Crush . | . . . . . . . . . . Escape Stasis 6 | . . . . . . . 6 . . Rewire . | . . . . . . . . . . Trap . | . . . . . . . . . . Miscellaneous . | . . . . . . . . . . Route ------- -11/Scrapyard -10/Materials (discovered 3 exits: *Mat x3) -9/Materials -8/Materials (discovered 3 exits: *Fac x3) -7/Factory -6/Factory (discovered 4 exits: *Fac x4) -5/Factory (discovered 4 exits: *Fac x4) -4/Factory -3/Research (discovered 3 exits: *Res x3) -2/Research (discovered 3 exits: Acc x3) History --------- Turn | Location | Event 14 | -11/Scrapyard | Discovered new exit (range 12) 20 | -11/Scrapyard | Entered Materials 37 | -10/Materials | Identified exit to Materials 56 | -10/Materials | Entered another Materials area 56 | -9/Materials | Evolved 2 slots: Propulsion x1, Utility x1 107 | -9/Materials | Discovered new exit (range 6) 110 | -9/Materials | Entered another Materials area 110 | -8/Materials | Evolved 2 slots: Propulsion x1, Utility x1 126 | -8/Materials | Identified exit to Factory 199 | -8/Materials | Entered Factory 199 | -7/Factory | Evolved 2 slots: Power x1, Propulsion x1 269 | -7/Factory | Discovered new exit (range 9) 272 | -7/Factory | Entered another Factory area 272 | -6/Factory | Evolved 2 slots: Utility x2 326 | -6/Factory | Build established: Mutant 338 | -6/Factory | Identified exit to Factory 374 | -6/Factory | Entered another Factory area 374 | -5/Factory | Evolved 2 slots: Propulsion x1, Utility x1 394 | -5/Factory | Identified exit to Factory 407 | -5/Factory | Entered another Factory area 407 | -4/Factory | Evolved 2 slots: Power x1, Utility x1 543 | -4/Factory | Discovered new exit (range 9) 560 | -4/Factory | Lost 4 parts (1p3n) 568 | -4/Factory | Identified exit to Research 568 | -4/Factory | Entered Research 568 | -3/Research | Evolved 2 slots: Propulsion x1, Utility x1 571 | -3/Research | Identified exit to Research 619 | -3/Research | Entered another Research area 619 | -2/Research | Evolved 2 slots: Propulsion x1, Utility x1 638 | -2/Research | Lost 3 parts (2p1n) 663 | -2/Research | Identified exit to Access 746 | -2/Research | Core integrity fell below 50% 749 | -2/Research | Spotted B-90 Cyclops 755 | -2/Research | Core integrity fell below 20% 759 | -2/Research | Destroyed by S-43 Plague with Heavy Machine Gun Last Messages --------------- 00739_ ALERT: Hostile activity reported, dispatching reinforcements to area. 00740_ Slammed into R-10 Processor. 00745_ Hacking Suite destroyed. 00748_ Penetrated by Slug. 00748_ Slug penetrates Wall. 00749_ Recycling Unit disabled. 00751_ Penetrated by Slug. 00751_ Broken Adv. Coolant Injector destroyed. 00751_ Slug penetrates Fabricator. 00751_ Fabricator disabled. 00751_ Penetrated by Slug. 00751_ Gyrokinetic Inverter destroyed. 00751_ Broken Enh. Optical Array destroyed. 00752_ G-73 Enforcer IFF system glitched. 00754_ B-90 Cyclops activates siege mode. 00754_ Penetrated by Slug. 00754_ Slug penetrates Recycling Unit. 00754_ P-80 Master resets G-73 Enforcer, system corruption cleaned. 00754_ Penetrated by Slug. 00759_ System corrupted: Matter fused (-9). Map ----- +----------------------------------------------------+ | #????????????# """ # #???????????????????? | | #????????????# "R # #???????????????????? | | ###????????????# """ # #???????????????????? | | ???????????????# "" " #???????????????????? | | ???????????????# # #???????????????????? | | ???????????????#? # ########????????????? | | ????????????????####?#### #????????????? | | ??????????????????????### #????????????? | | ??????????????????????#"" #????????????? | | ??????????????????????# """ #????????????? | | ??????????????????????# "Y" #????????????? | | ??????????????????????#""!! " #????????????? | | ??????????????????????###! #######??????? | | ????????????????????????# hs ??????? | | ????????????????????????# #?????? | | ????????????????????????# #?????? | | ????????????????????????# #?????? | | ????????????????????????#h #"" ##### ??????? | | ????????????????????????# #?# #??????????????? | | ????????????????????????# #??###??????????????? | | ????????????????????????# #???????????????????? | | ????????????????????????#R #???????????????????? | | ????????????????????????# #???????????????????? | | ????????????????????????# w#???????????????????? | | ????????????????????????# #???????????????????? | | ????????????????????????#@ #???????????????????? | | ????????????????????????# #???????????????????? | | ????????????????????????Y +???????????????????? | | ????????????????????????# #???????????????????? | | ????????????????????????# g#???????????????????? | | ????????????????????????# #???????????????????? | | ????????????????????????# ugg#???????????????????? | | ????????????????????????# g#???????????????????? | | ????????????????????????# #???????????????????? | | ????????????????????????? ???????????????????? | | ????????????????????????? ???????????????????? | | ?????????????????????????k ??????????????????? | | ?????????????????????????k ??????????????????? | | ????????????????????????? ###?????????????????? | | ????????????????????????? #???????????????????? | | ????????????????????????? ?????????????????????? | | ?????????????????????????????????????????????????? | | ?????????????????????????????????????????????????? | | ?????????????????????????????????????????????????? | | ?????????????????????????????????????????????????? | | ?????????????????????????????????????????????????? | | ?????????????????????????????????????????????????? | | ?????????????????????????????????????????????????? | | ?????????????????????????????????????????????????? | | ?????????????????????????????????????????????????? | +----------------------------------------------------+ Best States ------------- Heat Dissipation 49 Coolant Potential 100 Energy Generation 35 Energy Capacity 535 Matter Stores 291 Matter Capacity 300 Sight Range 22 Terrain Scan Density 10 Additional Mass Support 9 Evasion (%) 62 Offensive Hacking 10 Item Schematics ----------------- None Robot Schematics ------------------ None Fabricated ------------ Nothing Alien Tech Used ----------------- None Achievements -------------- None Challenges ------------ None Game ------ Seed IonCentriumMagmablaster Manual? 0 Play Time 00:19:33 Cumulative 118.1 hours Start 2020.06.04 @ 22:17:21 End 2020.06.04 @ 22:33:37 Sessions 1 Manual Loads 0 Difficulty Rogue Special Mode None Game No. 266 Rogue 258 Adventurer 8 Explorer 0 Win Type - Total 7 Types 4/0/2/1/0/0/0 Lore% 77 Gallery% 78 Achievement% 58 Wizard Run 0 Options --------- ASCII 0 Keyboard 0 Movement Numpad Keybinds 0 Fullscreen 1 Font 12/Smallcaps Map View 83x54 Tactical HUD 1 Map Filters NONE Filters NONE Steam 1 RUN: f28167ec-2a00-417e-99a7-9f62f2f1c1bd